Cogmind - Beta 13 @@@ ROGUE MODE // 2024.04.20 @ 15:07:09 Player: Zaros426 Result: Destroyed by S-10 Pest with Light Assault Rifle Performance ------------- Evolutions (0) 0 Regions Visited (2) 400 Robots Destroyed (40) 200 Value Destroyed (645) 645 Prototype IDs (2) 40 Alien Tech Used (0) 0 Bonus (60) 60 TOTAL SCORE: 1345 Bonus ------- Follower Combat Kills 60 Cogmind --------- Core Integrity 0/250 Matter 290/300 Energy 250/250 System Corruption 0% Temperature Cool (0) Movement Treading (160) Location -10/Mines Parts ------- > --- POWER (1) -------- Ion Engine > --- PROPULSION (2) --- Light Treads Aluminum Leg > --- UTILITY (2) ------ Small Storage Unit Seismic Detector > --- WEAPON (2) ------- Beam Cannon > --- INVENTORY (8) ---- Structural Scanner Improved Terrain Scanner Improved Terrain Scanner Grenade Launcher Mini Grenade Launcher Mini Grenade Launcher Peak State ------------ > --- POWER ------------ Ion Engine > --- PROPULSION ------- Light Treads Light Treads > --- UTILITY ---------- Small Storage Unit > --- WEAPON ----------- EM Shotgun EM Shotgun > --- INVENTORY -------- Improved Terrain Scanner Improved Terrain Scanner Medium Laser Beam Cannon Grenade Launcher Mini Grenade Launcher Mini Grenade Launcher [Rating: 9] Favorites ----------- Power Ion Engine Engine Ion Engine Propulsion Light Treads Treads Light Treads Leg Aluminum Leg Utility Small Storage Unit Device Seismic Detector Storage Small Storage Unit Weapon Beam Cannon Energy Gun EM Shotgun Energy Cannon Beam Cannon Build | -11 -10 -10 ------- Run | Yrd Mat Min Slots Evolved . | . . . Power . | . . . Propulsion . | . . . Utility . | . . . Weapon . | . . . Parts Attached 18 | 6 10 2 Power 3 | 1 2 . Engine 3 | 1 2 . Core . | . . . Reactor . | . . . Propulsion 5 | 2 2 1 Treads 4 | 2 2 . Leg 1 | . . 1 Wheel . | . . . Hover . | . . . Flight . | . . . Utility 3 | 2 . 1 Device 2 | 1 . 1 Storage 1 | 1 . . Processor . | . . . Hackware . | . . . Protection . | . . . Artifact . | . . . Weapon 7 | 1 6 . Energy Gun 5 | 1 4 . Energy Cannon 2 | . 2 . Ballistic Gun . | . . . Ballistic Cannon . | . . . Launcher . | . . . Special Weapon . | . . . Impact Weapon . | . . . Slashing Weapon . | . . . Piercing Weapon . | . . . Special Melee Weapon . | . . . Unidentified Prototypes . | . . . Parts Lost 6 | . 6 . Power 2 | . 2 . Propulsion 1 | . 1 . Utility . | . . . Weapon 3 | . 3 . Highest Loss Streak 2 | . 2 . To Critical Strikes . | . . . Average Slot Usage (%) 78 | . 78 76 Engine 12 | . 12 14 Treads 22 | . 25 14 Leg 1 | . . 7 Device 3 | . 1 12 Storage 14 | . 14 14 Energy Gun 13 | . 16 . Energy Cannon 8 | . 7 14 Naked Turns . | . . . Heaviest Build 16 | 13 16 14 Greatest Support 40 | 40 40 20 Greatest Overweight (x) 1 | . . 1 Average Overweight (x) . | . . . Largest Inventory Capacity 8 | 8 8 8 Average Capacity 7 | 7 8 8 Most Carried 8 | 2 8 6 Average Carried 5 | 1 5 6 Final Capacity 8 | 8 8 8 Final Carried 6 | 2 6 6 Class Distribution -------------------- 88% | Mutant 11% | Scavenger-Mutant Dominant Class ---------------- Mutant | -10/Materials Scavenger-Mutant | -10/Mines Resources | -11 -10 -10 ----------- Run | Yrd Mat Min Matter Collected 370 | 260 100 10 Remotely . | . . . Salvage Created 1422 | 248 1144 30 Parts 85 | 20 61 4 Haulers Intercepted 2 | . 2 . Recyclers Shooed 3 | 1 2 . Parts Field Recycled . | . . . Retrieved Matter . | . . . Parts Self-Destructed . | . . . Prevented . | . . . Kills | -11 -10 -10 ------- Run | Yrd Mat Min Combat Hostiles Destroyed 18 | . 18 . Guns 9 | . 9 . Cannons 7 | . 7 . Classes Destroyed 9 | 3 6 . Worker 3 | 2 1 . Builder 2 | . 2 . Tunneler 7 | 5 1 1 Hauler 2 | . 2 . Recycler 4 | 1 3 . Operator 1 | . 1 . Watcher 3 | . 3 . Swarmer 6 | . 6 . Grunt 12 | . 12 . Best Kill Streak 5 | 5 3 1 Combat Bots Only 3 | . 3 . Max Kills in Single Turn 1 | 1 1 1 Gunslinging . | . . . Exploded . | . . . Melee . | . . . Uniques/NPCs Destroyed . | . . . Combat | -11 -10 -10 -------- Run | Yrd Mat Min Hostile Shots Fired 107 | . 103 4 Missed 26 | . 26 . Damage Taken 902 | . 868 34 Core 251 | . 232 19 Absorbed by Shields . | . . . Core Remaining (%) 100 | 100 . . Volleys Fired 134 | 18 110 6 Largest 2 | 1 2 1 Hottest 110 | 50 110 60 Shots Fired 200 | 18 176 6 Gun 130 | 18 112 . Cannon 70 | . 64 6 Launcher . | . . . Special . | . . . Kinetic . | . . . Thermal 146 | 18 122 6 Explosive . | . . . Electromagnetic 54 | . 54 . Robot Hit Streak 10 | 5 10 2 Robot Miss Streak 4 | 1 4 2 Penetration Max . | . . . Secondary Targets 2 | . 2 . Max Gunslinging Chain 1 | . 1 . Shots Hit Robots 135 | 15 116 4 Core Hits 56 | 9 46 1 Critical Kills . | . . . Critical Parts Destroyed . | . . . Critical Strikes 3 | 1 2 . Burn 3 | 1 2 . Melee Attacks . | . . . Impact . | . . . Slashing . | . . . Piercing . | . . . Sneak Attacks . | . . . Combat Hostiles . | . . . Follow-up Attacks . | . . . Damage Inflicted 2169 | 198 1901 70 Guns 1359 | 198 1161 . Cannons 751 | . 681 70 Explosions 59 | . 59 . Melee . | . . . Ramming . | . . . Kinetic . | . . . Thermal 1487 | 198 1219 70 Explosive . | . . . Electromagnetic 682 | . 682 . Impact . | . . . Slashing . | . . . Piercing . | . . . Highest Corruption . | . . . Average Corruption . | . . . Corruption Purged . | . . . Corruption Blocked . | . . . Overload Shots . | . . . Overflow Damage 18 | . 18 . Projectiles 12 | . 12 . Explosions 6 | . 6 . Melee . | . . . Knockbacks . | . . . Impact . | . . . Kinetic . | . . . Secondary . | . . . Self-Inflicted Damage 23 | . 23 . Shots 1 | . 1 . Rammed . | . . . Targets Rammed . | . . . Kicked . | . . . Crushed . | . . . Highest Temperature 537 | 50 537 21 Average Temperature 98 | 16 109 10 Received Heat Transfer 423 | . 417 6 Effects 8 | . 8 . Shutdowns 2 | . 2 . Energy Bleed 2 | . 2 . Interference 3 | . 3 . Damage (minor) 1 | . 1 . Siege Activations . | . . . Robots Corrupted 2 | . 2 . Combat Hostiles 2 | . 2 . Parts Fried 2 | . 2 . Impact Corruptions . | . . . Robots Melted . | . . . Combat Hostiles . | . . . Parts Melted 6 | 2 4 . Heat Transferred 3837 | 666 3023 148 Parts Sabotaged . | . . . Parts Stolen . | . . . Parts Stripped . | . . . Power Chain Reactions 1 | . 1 . Alert | -11 -10 -10 ------- Run | Yrd Mat Min Peak Influence 199 | 40 199 117 Initial 75 | . 26 75 Average 91 | 14 102 97 Maximum Alert Level . | . . . Low Security (%) 100 | 100 100 100 Level 1 . | . . . Level 2 . | . . . Level 3 . | . . . Level 4 . | . . . Level 5 . | . . . High Security . | . . . Max Security . | . . . Squads Dispatched 5 | . 5 . Investigation 3 | . 3 . Extermination . | . . . Reinforcement 2 | . 2 . Assault . | . . . Garrison . | . . . Intercept . | . . . Searches Triggered . | . . . Construction Impeded . | . . . Haulers Reinforced . | . . . Active Scanning Responses . | . . . Cargo Convoy Interrupts . | . . . Stealth | -11 -10 -10 --------- Run | Yrd Mat Min Distress Signals 2 | . 2 . Communications Jammed . | . . . Distress Signals . | . . . Times Spotted 34 | . 29 5 Peak Tracking Total 4 | . 4 3 Tactical Retreats 2 | . 2 . Traps | -11 -10 -10 ------- Run | Yrd Mat Min Traps Triggered 3 | . 3 . Indirectly . | . . . Trap Hack Attempts . | . . . Triggered . | . . . Disarmed . | . . . Reprogrammed . | . . . Reused . | . . . Traps Extracted . | . . . Installed . | . . . Triggered . | . . . Machines | -11 -10 -10 ---------- Run | Yrd Mat Min Machines Disabled 1 | . 1 . Max in Single Turn 1 | . 1 . Machines Repaired . | . . . Machines Dismantled . | . . . Machines Sabotaged . | . . . Overloaded Fab Kills . | . . . Hacking | -11 -10 -10 --------- Run | Yrd Mat Min Machines Accessed 6 | . 6 . Terminals 6 | . 6 . Fabricators . | . . . Repair Stations . | . . . Recycling Units . | . . . Scanalyzers . | . . . Garrison Access . | . . . Total Hacks 27 | . 27 . Successful 7 | . 7 . Failed 20 | . 20 . Catastrophic 1 | . 1 . Database Lockouts . | . . . Manual 25 | . 25 . Terminals 27 | . 27 . Fabricators . | . . . Repair Stations . | . . . Recycling Units . | . . . Scanalyzers . | . . . Garrison Access . | . . . Terminal Hacks 7 | . 7 . Robot Analysis 6 | . 6 . Prototype ID Bank 1 | . 1 . Fabricator Hacks . | . . . Repair Station Hacks . | . . . Recycling Unit Hacks . | . . . Scanalyzer . | . . . Garrison Access Hacks . | . . . Unauthorized Hacks . | . . . Terminals . | . . . Fabricators . | . . . Repair Stations . | . . . Recycling Units . | . . . Scanalyzers . | . . . Garrison Access . | . . . Data Cores Recovered . | . . . Used . | . . . Hacking Detections 6 | . 6 . Full Trace Events 3 | . 3 . Feedback Events . | . . . Feedback Blocked . | . . . Robot Schematics Acquired . | . . . Robots Built . | . . . Authchips . | . . . Time . | . . . Total Robot Build Rating . | . . . Part Schematics Acquired . | . . . Parts Built . | . . . Authchips . | . . . Time . | . . . Total Part Build Rating . | . . . Parts Repaired . | . . . Time . | . . . Parts Recycled . | . . . Recycled Matter . | . . . Retrieved Matter . | . . . Retrieved Components . | . . . Parts Scanalyzed . | . . . Part Schematics Acquired . | . . . Parts Damaged . | . . . Bothacking | -11 -10 -10 ------------ Run | Yrd Mat Min Used RIF Installer . | . . . Robots Hacked . | . . . Non-combat . | . . . Combat . | . . . Robot Hacks Applied . | . . . Relay Couplers Released . | . . . Fabnet Peak Effective % . | . . . Robots Rewired . | . . . Allies Hacked . | . . . Hacks Repelled . | . . . Allies | -11 -10 -10 -------- Run | Yrd Mat Min Total Allies 4 | . . 4 Largest Group 3 | . . 3 Highest-Rated Group 55 | . . 55 Highest-Rated Ally 31 | . . 31 Total Orders . | . . . Ally Attacks 10 | . . 10 Total Damage 122 | . . 122 Kills 2 | . . 2 Allies Corrupted . | . . . Allies Melted . | . . . Intel | -11 -10 -10 ------- Run | Yrd Mat Min Robot Analysis Total 5 | . 5 . Derelict Logs Recovered 1 | . . 1 Drone Launches . | . . . Drone Recoveries . | . . . Exploration | -11 -10 -10 ------------- Run | Yrd Mat Min Turns Passed 2059 | 222 1422 415 Spaces Moved 1010 | 102 665 243 Core 5 | 5 . . Treads 997 | 97 665 235 Legs 8 | . . 8 Wheels . | . . . Hover . | . . . Flight . | . . . Fastest Speed 50 | 50 160 160 Average Speed 159 | 154 160 160 Slowest Speed 190 | 160 160 190 Overloaded Moves . | . . . Propulsion Burnouts . | . . . Robots Hopped . | . . . Cave-ins Triggered . | . . . Exploration Rate (%) 47 | 6 98 39 Regions Visited 2 Branch Regions 1 Pre-discovered Areas . | . . . Known Exits Taken . | . . . Unknown Exits Taken 2 | 1 1 . Scrap Searched . | . . . Spaces Dug . | . . . Terrain Destroyed 3 | . 3 . Melee . | . . . Projectile . | . . . AOE 3 | . 3 . Terrain Rammed . | . . . Walls Destroyed . | . . . Machines Disabled . | . . . Actions | -11 -10 -10 --------- Run | Yrd Mat Min Total 1249 | 145 844 260 Wait 78 | 18 51 9 Move 1008 | 101 664 243 Hop . | . . . Pick Up 9 | 2 7 . Fast Attach 13 | 6 5 2 Attach 2 | . 2 . Detach . | . . . Swap 3 | . 3 . Drop 2 | . 2 . Fire 134 | 18 110 6 Melee . | . . . Ram . | . . . Kick . | . . . Crush . | . . . Escape Stasis . | . . . Rewire . | . . . Trap . | . . . Miscellaneous . | . . . Route ------- -11/Scrapyard -10/Materials (discovered 5 exits: [*Mat x3] / [*Min x2]) -10/Mines (discovered 1 exit: [*Mat]) History --------- Turn | Location | Event 5 | -11/Scrapyard | Discovered new exit (range 16) 223 | -11/Scrapyard | Entered Materials 311 | -10/Materials | Build established: Mutant 503 | -10/Materials | Discovered new exit (range 8) 803 | -10/Materials | Discovered new exit (range 15) 1056 | -10/Materials | Discovered new exit (range 15) 1197 | -10/Materials | Discovered new exit (range 12) 1421 | -10/Materials | Core integrity fell below 50% 1481 | -10/Materials | Core integrity fell below 20% 1510 | -10/Materials | Discovered new exit (range 12) 1645 | -10/Materials | Entered Mines 1733 | -10/Mines | Assisted by bots powering up and referring to "LRC-V3" 1874 | -10/Mines | Received a Mining Laser from a helpful Derelict 1924 | -10/Mines | Learned Materials stockpile data 2057 | -10/Mines | Discovered new exit (range 6) 2060 | -10/Mines | Destroyed by S-10 Pest with Light Assault Rifle Last Messages --------------- 01646_ K-01 Serf collects debris. 01700_ T-07 Excavator destroyed. 01707_ Acquired Seismic Detector. 01733_ Trooper 1a: "Hello LRC-V3. What is your command?" 01733_ Mercenary 1a: "Hello LRC-V3. What is your command?" 01733_ Trooper 1b: "Hello LRC-V3. What is your command?" 01761_ Acquired 10 matter. 01818_ Trooper 1a destroyed. 01826_ K-01 Serf collects debris. 01838_ Acquired Aluminum Leg. 01872_ A derelict emerges from the shadows: "What are you doing alone down here?" 01874_ IL-E69(g): "And why aren't you carrying a mining laser?! Certainly you don't want THEM to uncover you when the ceiling comes crashing down? Here, take my spare." 01877_ IL-E69(g): "You're apparently new around these parts, I'll cover you." 01881_ IL-E69(g): "Mining lasers are a lot more useful than you might think..." 01924_ Acquired derelict log, extracted data. Data stored: Materials stockpile data. 02015_ K-01 Serf cleans the Seismic Survey Station. 02057_ EXIT=FOUND Map ----- +----------------------------------------------------+ | | | | | | | | | | | | | | | | | ?????????????????????????????????????????????????? | | ?????????????????????????????????????????????????? | | ?????????????????????????????????????????????????? | | ??????????????????????????###############????????? | | ???????????????####???????# #????????? | | ???????????##### ##???#### """ """ """ #????????? | | ??????????## #???# """ """ """ #????????? | | ??????????# ##### """ """ """ #????????? | | ########### # #????????? | | =%*! # """ """ #????????? | | ############ ########## """ """ #????????? | | ???????????# #????????# """ """ #????????? | | ?????###???# ##????????# #????????? | | ???## #???# ##?????????###############????????? | | #### #???# ##?????????????????????????????????? | | # #????# #??????????????????????????????????? | | ##????# ##############?????????????????????? | | | ###?????#k r ggg@ #?????????????????????? | | ##?####### ############s#?????????????????????? | | ##?## ##?????????# #?????????????????????? | | ##??# ##????????# #?????????????????????? | | #??## #???????? ?????????????????????? | | #?## ## #???????? ?????????????????????? | | ### #### ##????????